[Event "Late-Titled-Tuesday-Blitz-October-10-2023"]
[Site "Chess.com"]
[Date "2023.10.10"]
[Round "4"]
[White "shimastream"]
[Black "GMG"]
[Result "1-0"]
[WhiteElo "3002"]
[BlackElo "2718"]
[TimeControl "180+1"]
[EndTime "14:36:42 PDT"]
[Termination "shimastream won on time"]

1. e4 {[%clk 0:02:56.1]} 1... c5 {[%clk 0:02:59.7]} 2. d4 {[%clk 0:02:54.2]}
2... cxd4 {[%clk 0:02:59.4]} 3. Qxd4 {[%clk 0:02:55.1]} 3... Nc6 {[%clk
0:02:58.7]} 4. Qd3 {[%clk 0:02:55.5]} 4... e6 {[%clk 0:02:58.7]} 5. Nc3 {[%clk
0:02:53.8]} 5... a6 {[%clk 0:02:58.3]} 6. Qg3 {[%clk 0:02:52]} 6... b5 {[%clk
0:02:50.8]} 7. Bd3 {[%clk 0:02:49.6]} 7... Bb7 {[%clk 0:02:50.7]} 8. Nf3 {[%clk
0:02:46.5]} 8... Nge7 {[%clk 0:02:41.5]} 9. h4 {[%clk 0:02:45.7]} 9... h5 {[%clk
0:02:40.4]} 10. a3 {[%clk 0:02:41.8]} 10... Ng6 {[%clk 0:02:37.2]} 11. e5 {[%clk
0:02:41]} 11... Nce7 {[%clk 0:02:37.3]} 12. Bg5 {[%clk 0:02:38.9]} 12... Qb8
{[%clk 0:02:34.1]} 13. O-O-O {[%clk 0:02:26.6]} 13... Bxf3 {[%clk 0:02:28.3]}
14. Qxf3 {[%clk 0:02:27.5]} 14... Nxe5 {[%clk 0:02:27.2]} 15. Qe2 {[%clk
0:02:27.8]} 15... b4 {[%clk 0:02:16.8]} 16. axb4 {[%clk 0:02:25.9]} 16... N7c6
{[%clk 0:02:17.3]} 17. b5 {[%clk 0:02:09.3]} 17... axb5 {[%clk 0:02:15.1]} 18.
Bxb5 {[%clk 0:02:10.2]} 18... Bb4 {[%clk 0:02:06.1]} 19. Na4 {[%clk 0:01:52.1]}
19... Ra5 {[%clk 0:01:57.6]} 20. c4 {[%clk 0:01:48]} 20... O-O {[%clk
0:01:48.3]} 21. Rh3 {[%clk 0:01:40.5]} 21... Qa8 {[%clk 0:01:33.6]} 22. b3
{[%clk 0:01:36.4]} 22... Rb8 {[%clk 0:01:33.4]} 23. Rg3 {[%clk 0:01:33.5]} 23...
Rbxb5 {[%clk 0:01:10.5]} 24. cxb5 {[%clk 0:01:32.7]} 24... Rxa4 {[%clk
0:01:11.1]} 25. bxa4 {[%clk 0:01:31.8]} 25... Qxa4 {[%clk 0:01:12]} 26. Kb1
{[%clk 0:01:09.6]} 26... Na5 {[%clk 0:00:45.5]} 27. Rc1 {[%clk 0:00:38.4]} 27...
Bd6 {[%clk 0:00:18.9]} 28. Rc8+ {[%clk 0:00:36.2]} 28... Bf8 {[%clk 0:00:17.9]}
29. Be7 {[%clk 0:00:33.8]} 29... Ng6 {[%clk 0:00:08.2]} 30. Bxf8 {[%clk
0:00:15.9]} 30... Nxf8 {[%clk 0:00:06]} 31. Qb2 {[%clk 0:00:15.4]} 31... g6
{[%clk 0:00:02.4]} 32. Ra3 {[%clk 0:00:13.6]} 1-0

[Event "Late-Titled-Tuesday-Blitz-October-10-2023"]
[Site "Chess.com"]
[Date "2023.10.10"]
[Round "4"]
[White "Andrej2004"]
[Black "ElenGajger"]
[Result "1-0"]
[WhiteElo "2586"]
[BlackElo "2394"]
[TimeControl "180+1"]
[EndTime "14:36:43 PDT"]
[Termination "Andrej2004 won on time"]

1. e4 {[%clk 0:03:00.9]} 1... c5 {[%clk 0:02:59.8]} 2. Nf3 {[%clk 0:02:55.9]}
2... g6 {[%clk 0:02:58.4]} 3. c4 {[%clk 0:02:46.2]} 3... Nc6 {[%clk 0:02:56]} 4.
d4 {[%clk 0:02:46.3]} 4... cxd4 {[%clk 0:02:56.9]} 5. Nxd4 {[%clk 0:02:46.6]}
5... Bg7 {[%clk 0:02:57.7]} 6. Be3 {[%clk 0:02:46.8]} 6... Nf6 {[%clk
0:02:57.4]} 7. Nc3 {[%clk 0:02:47.4]} 7... O-O {[%clk 0:02:57.4]} 8. Be2 {[%clk
0:02:44.7]} 8... d6 {[%clk 0:02:57.5]} 9. O-O {[%clk 0:02:44.2]} 9... Bd7 {[%clk
0:02:57.5]} 10. f3 {[%clk 0:02:44.4]} 10... Nxd4 {[%clk 0:02:53.9]} 11. Bxd4
{[%clk 0:02:44.5]} 11... a5 {[%clk 0:02:53.4]} 12. Qd2 {[%clk 0:02:44.3]} 12...
Bc6 {[%clk 0:02:52.3]} 13. b3 {[%clk 0:02:43.6]} 13... Nd7 {[%clk 0:02:52.5]}
14. Be3 {[%clk 0:02:42.4]} 14... Nc5 {[%clk 0:02:51.4]} 15. Rab1 {[%clk
0:02:40.8]} 15... Qb6 {[%clk 0:02:48]} 16. Rfd1 {[%clk 0:02:23.6]} 16... Rfc8
{[%clk 0:02:38.1]} 17. a3 {[%clk 0:02:22.3]} 17... Nxb3 {[%clk 0:02:28.9]} 18.
Qd3 {[%clk 0:02:22.2]} 18... Nc5 {[%clk 0:01:15.8]} 19. Rxb6 {[%clk 0:02:19.3]}
19... Nxd3 {[%clk 0:01:16.7]} 20. Rxd3 {[%clk 0:02:19.4]} 20... a4 {[%clk
0:00:53.2]} 21. Nd5 {[%clk 0:02:16.8]} 21... Bxd5 {[%clk 0:00:53.2]} 22. cxd5
{[%clk 0:02:13]} 22... Rc7 {[%clk 0:00:50.3]} 23. h3 {[%clk 0:02:06.4]} 23...
Rac8 {[%clk 0:00:48.9]} 24. Rb4 {[%clk 0:02:02]} 24... Rc2 {[%clk 0:00:46]} 25.
Kf2 {[%clk 0:01:46.7]} 25... Ra2 {[%clk 0:00:41.3]} 26. Bd4 {[%clk 0:01:40.2]}
26... Rcc2 {[%clk 0:00:36.8]} 27. Re3 {[%clk 0:01:26.2]} 27... Bh6 {[%clk
0:00:36.5]} 28. Rxb7 {[%clk 0:01:23.5]} 28... Bxe3+ {[%clk 0:00:35.9]} 29. Kxe3
{[%clk 0:01:23.8]} 29... Rxe2+ {[%clk 0:00:35.9]} 30. Kf4 {[%clk 0:01:24.4]}
30... g5+ {[%clk 0:00:29.2]} 31. Kf5 {[%clk 0:01:21.9]} 31... e6+ {[%clk
0:00:16.4]} 32. dxe6 {[%clk 0:01:20.5]} 32... fxe6+ {[%clk 0:00:17.3]} 33. Kf6
{[%clk 0:01:18.2]} 33... h5 {[%clk 0:00:08.7]} 34. Kxe6 {[%clk 0:00:35.3]} 34...
g4 {[%clk 0:00:07]} 35. Rb8+ {[%clk 0:00:32.7]} 35... Kh7 {[%clk 0:00:06.8]} 36.
Kf7 {[%clk 0:00:32]} 36... Kh6 {[%clk 0:00:04.7]} 37. Bf6 {[%clk 0:00:31.6]} 1-0

[Event "Late-Titled-Tuesday-Blitz-October-10-2023"]
[Site "Chess.com"]
[Date "2023.10.10"]
[Round "4"]
[White "Jahonas"]
[Black "PawnEatingZombie"]
[Result "0-1"]
[WhiteElo "2419"]
[BlackElo "2203"]
[TimeControl "180+1"]
[EndTime "14:36:44 PDT"]
[Termination "PawnEatingZombie won by checkmate"]

1. d4 {[%clk 0:02:56]} 1... Nf6 {[%clk 0:02:58.8]} 2. c4 {[%clk 0:02:55.5]} 2...
g6 {[%clk 0:02:59.4]} 3. Nf3 {[%clk 0:02:55.9]} 3... Bg7 {[%clk 0:02:58.3]} 4.
Nc3 {[%clk 0:02:56.6]} 4... d5 {[%clk 0:02:58.6]} 5. Bf4 {[%clk 0:02:56.6]} 5...
O-O {[%clk 0:02:54.8]} 6. e3 {[%clk 0:02:56.6]} 6... c5 {[%clk 0:02:50.9]} 7.
cxd5 {[%clk 0:02:54.8]} 7... Nxd5 {[%clk 0:02:45]} 8. Bg3 {[%clk 0:02:49.6]}
8... cxd4 {[%clk 0:02:43]} 9. exd4 {[%clk 0:02:48]} 9... Nc6 {[%clk 0:02:40.7]}
10. Qb3 {[%clk 0:02:39.9]} 10... Nxc3 {[%clk 0:02:37]} 11. bxc3 {[%clk
0:02:39.4]} 11... Be6 {[%clk 0:02:31.6]} 12. Qa3 {[%clk 0:02:34.7]} 12... Qa5
{[%clk 0:02:15.4]} 13. Qxa5 {[%clk 0:02:32.6]} 13... Nxa5 {[%clk 0:02:16.3]} 14.
Bd3 {[%clk 0:02:15.3]} 14... Rac8 {[%clk 0:02:14.3]} 15. Rc1 {[%clk 0:02:12.9]}
15... Bc4 {[%clk 0:01:56.1]} 16. Bxc4 {[%clk 0:02:05.1]} 16... Rxc4 {[%clk
0:01:56.7]} 17. Nd2 {[%clk 0:01:51.7]} 17... Ra4 {[%clk 0:01:53.9]} 18. Rc2
{[%clk 0:01:29.9]} 18... Rc8 {[%clk 0:01:52.4]} 19. Be5 {[%clk 0:01:22]} 19...
Bxe5 {[%clk 0:01:50.1]} 20. dxe5 {[%clk 0:01:21.5]} 20... Nc4 {[%clk 0:01:48.9]}
21. e6 {[%clk 0:01:16]} 21... fxe6 {[%clk 0:01:37.1]} 22. Nb1 {[%clk 0:01:05.7]}
22... Na3 {[%clk 0:01:34.9]} 23. Nxa3 {[%clk 0:01:04.8]} 23... Rxa3 {[%clk
0:01:35.8]} 24. Kd2 {[%clk 0:01:04.3]} 24... b5 {[%clk 0:01:31.3]} 25. Rb1
{[%clk 0:01:02.9]} 25... a6 {[%clk 0:01:30.4]} 26. Rb3 {[%clk 0:01:01.8]} 26...
Ra4 {[%clk 0:01:29.7]} 27. f3 {[%clk 0:00:59.4]} 27... Kf7 {[%clk 0:01:24.8]}
28. g3 {[%clk 0:00:53.5]} 28... e5 {[%clk 0:01:25]} 29. Rb4 {[%clk 0:00:51.7]}
29... Rxb4 {[%clk 0:01:23.2]} 30. cxb4 {[%clk 0:00:51.9]} 30... Rxc2+ {[%clk
0:01:23.4]} 31. Kxc2 {[%clk 0:00:52.2]} 31... Ke6 {[%clk 0:01:24.1]} 32. Kd3
{[%clk 0:00:52.6]} 32... Kd5 {[%clk 0:01:24.6]} 33. a3 {[%clk 0:00:52.3]} 33...
h6 {[%clk 0:01:23.6]} 34. h4 {[%clk 0:00:50]} 34... g5 {[%clk 0:01:19.7]} 35. h5
{[%clk 0:00:37]} 35... e4+ {[%clk 0:01:04.5]} 36. fxe4+ {[%clk 0:00:36.7]} 36...
Ke5 {[%clk 0:01:04.8]} 37. Ke3 {[%clk 0:00:35.7]} 37... Ke6 {[%clk 0:00:54.3]}
38. Kd4 {[%clk 0:00:35.4]} 38... Kd6 {[%clk 0:00:54.6]} 39. e5+ {[%clk
0:00:34.9]} 39... Kc6 {[%clk 0:00:54]} 40. e6 {[%clk 0:00:20.1]} 40... Kd6
{[%clk 0:00:53.4]} 41. g4 {[%clk 0:00:20.5]} 41... Kxe6 {[%clk 0:00:53.3]} 42.
Kc5 {[%clk 0:00:19.8]} 42... Kd7 {[%clk 0:00:43.4]} 43. Kb6 {[%clk 0:00:19.4]}
43... e5 {[%clk 0:00:43.9]} 44. Kxa6 {[%clk 0:00:19.6]} 44... e4 {[%clk
0:00:43.9]} 45. a4 {[%clk 0:00:18.8]} 45... e3 {[%clk 0:00:44.4]} 46. axb5
{[%clk 0:00:18.7]} 46... e2 {[%clk 0:00:44.8]} 47. b6 {[%clk 0:00:19.3]} 47...
e1=Q {[%clk 0:00:44.6]} 48. b7 {[%clk 0:00:20]} 48... Qa1+ {[%clk 0:00:42.1]}
49. Kb6 {[%clk 0:00:20.1]} 49... Qe5 {[%clk 0:00:39.2]} 50. Ka7 {[%clk
0:00:19.5]} 50... Qd4+ {[%clk 0:00:38.9]} 51. Ka8 {[%clk 0:00:18.9]} 51... Qa1+
{[%clk 0:00:35]} 52. Kb8 {[%clk 0:00:17.9]} 52... Kc6 {[%clk 0:00:33]} 53. Kc8
{[%clk 0:00:17.8]} 53... Qh8# {[%clk 0:00:32.9]} 0-1

[Event "Late-Titled-Tuesday-Blitz-October-10-2023"]
[Site "Chess.com"]
[Date "2023.10.10"]
[Round "4"]
[White "Roberz12"]
[Black "GianmarcoVaR"]
[Result "1-0"]
[WhiteElo "2463"]
[BlackElo "2669"]
[TimeControl "180+1"]
[EndTime "14:36:48 PDT"]
[Termination "Roberz12 won on time"]

1. e4 {[%clk 0:02:51.1]} 1... c5 {[%clk 0:02:58.9]} 2. Nf3 {[%clk 0:02:51]} 2...
d6 {[%clk 0:02:59.2]} 3. Bb5+ {[%clk 0:02:51]} 3... Nd7 {[%clk 0:02:58.8]} 4. c4
{[%clk 0:02:51.7]} 4... Nf6 {[%clk 0:02:57.6]} 5. Nc3 {[%clk 0:02:51.5]} 5... g6
{[%clk 0:02:57.8]} 6. O-O {[%clk 0:02:51.5]} 6... Bg7 {[%clk 0:02:58.2]} 7. h3
{[%clk 0:02:51.9]} 7... O-O {[%clk 0:02:58.5]} 8. Ba4 {[%clk 0:02:51.8]} 8... b6
{[%clk 0:02:54.4]} 9. d3 {[%clk 0:02:51.7]} 9... Bb7 {[%clk 0:02:50.1]} 10. Bc2
{[%clk 0:02:48.6]} 10... e6 {[%clk 0:02:46.9]} 11. Be3 {[%clk 0:02:47.4]} 11...
Rc8 {[%clk 0:02:34.6]} 12. Qd2 {[%clk 0:02:47.4]} 12... d5 {[%clk 0:02:31.4]}
13. cxd5 {[%clk 0:02:48.3]} 13... exd5 {[%clk 0:02:32.3]} 14. Bh6 {[%clk
0:02:40.4]} 14... d4 {[%clk 0:02:22.2]} 15. Bxg7 {[%clk 0:02:34.7]} 15... Kxg7
{[%clk 0:02:19.6]} 16. Ne2 {[%clk 0:02:35.2]} 16... Ne8 {[%clk 0:01:56.2]} 17.
Nf4 {[%clk 0:02:30]} 17... Nd6 {[%clk 0:01:50]} 18. Bb3 {[%clk 0:02:13]} 18...
c4 {[%clk 0:01:01.4]} 19. Bxc4 {[%clk 0:02:12.8]} 19... Nxc4 {[%clk 0:00:38.7]}
20. dxc4 {[%clk 0:02:12.7]} 20... Bxe4 {[%clk 0:00:39.1]} 21. Ng5 {[%clk
0:02:01.2]} 21... Qxg5 {[%clk 0:00:38.2]} 22. Ne6+ {[%clk 0:02:01]} 22... fxe6
{[%clk 0:00:38.5]} 23. Qxg5 {[%clk 0:02:01.7]} 23... e5 {[%clk 0:00:28.8]} 24.
Rae1 {[%clk 0:01:59.1]} 24... Rf5 {[%clk 0:00:24.4]} 25. Qe7+ {[%clk 0:01:58.3]}
25... Rf7 {[%clk 0:00:24.8]} 26. Qd6 {[%clk 0:01:50.5]} 26... Bd3 {[%clk
0:00:24.6]} 27. Rxe5 {[%clk 0:01:29.9]} 27... Bxf1 {[%clk 0:00:22.5]} 28. Kxf1
{[%clk 0:01:25.6]} 28... Nxe5 {[%clk 0:00:20.9]} 29. Qxe5+ {[%clk 0:01:26.5]}
29... Kg8 {[%clk 0:00:16.2]} 30. Qxd4 {[%clk 0:01:25.4]} 30... Re8 {[%clk
0:00:08.7]} 31. g3 {[%clk 0:01:25.4]} 31... Rfe7 {[%clk 0:00:09.2]} 32. b4
{[%clk 0:01:24.8]} 32... Re1+ {[%clk 0:00:09.3]} 33. Kg2 {[%clk 0:01:24.8]}
33... R1e4 {[%clk 0:00:09.9]} 34. Qd5+ {[%clk 0:01:24.9]} 34... Kg7 {[%clk
0:00:10.1]} 35. c5 {[%clk 0:01:25.5]} 35... R4e5 {[%clk 0:00:09.6]} 36. Qd6
{[%clk 0:01:22.1]} 36... bxc5 {[%clk 0:00:08.3]} 37. bxc5 {[%clk 0:01:21.9]}
37... R8e6 {[%clk 0:00:08]} 38. Qd7+ {[%clk 0:01:22.1]} 38... Re7 {[%clk
0:00:06]} 39. Qd8 {[%clk 0:01:22.1]} 39... Kf7 {[%clk 0:00:05.2]} 40. c6 {[%clk
0:01:21.8]} 40... Rc5 {[%clk 0:00:05.1]} 41. Qd6 {[%clk 0:01:21.8]} 41... Rc2
{[%clk 0:00:02.4]} 42. Qd5+ {[%clk 0:01:21.1]} 42... Kg7 {[%clk 0:00:03]} 43.
Qd4+ {[%clk 0:01:21.2]} 43... Kf7 {[%clk 0:00:02.5]} 44. Qa4 {[%clk 0:01:21.3]}
44... Ree2 {[%clk 0:00:01.9]} 45. Qf4+ {[%clk 0:01:21.2]} 45... Ke7 {[%clk
0:00:02]} 46. c7 {[%clk 0:01:22.1]} 46... Kd7 {[%clk 0:00:02.3]} 47. Qf7+ {[%clk
0:01:21.3]} 47... Kc8 {[%clk 0:00:02.8]} 48. g4 {[%clk 0:01:14.8]} 48... Rxa2
{[%clk 0:00:02.6]} 49. Qxh7 {[%clk 0:01:12.8]} 49... Rxf2+ {[%clk 0:00:02.6]}
50. Kg3 {[%clk 0:01:13.3]} 50... g5 {[%clk 0:00:03.4]} 51. Qg8+ {[%clk
0:01:12.2]} 51... Kxc7 {[%clk 0:00:03.7]} 52. Qxg5 {[%clk 0:01:13]} 52... Rg2+
{[%clk 0:00:03.9]} 53. Kh4 {[%clk 0:01:12.5]} 53... a5 {[%clk 0:00:03.1]} 54.
Qc5+ {[%clk 0:01:10.9]} 54... Kd7 {[%clk 0:00:03.5]} 55. Kh5 {[%clk 0:01:10.5]}
55... a4 {[%clk 0:00:02.6]} 56. h4 {[%clk 0:01:10.8]} 56... a3 {[%clk
0:00:02.7]} 57. g5 {[%clk 0:01:08.9]} 57... Rh2 {[%clk 0:00:01.9]} 58. Kg6
{[%clk 0:01:07.6]} 58... Rxh4 {[%clk 0:00:01.3]} 59. Qd5+ {[%clk 0:01:07.7]}
59... Kc7 {[%clk 0:00:01.7]} 60. Qxa2 {[%clk 0:01:08.6]} 1-0

[Event "Late-Titled-Tuesday-Blitz-October-10-2023"]
[Site "Chess.com"]
[Date "2023.10.10"]
[Round "4"]
[White "AlleyOoper"]
[Black "Harsha_Bharathakoti"]
[Result "0-1"]
[WhiteElo "2587"]
[BlackElo "2909"]
[TimeControl "180+1"]
[EndTime "14:36:49 PDT"]
[Termination "Harsha_Bharathakoti won by resignation"]

1. c4 {[%clk 0:03:00.9]} 1... b6 {[%clk 0:02:53.8]} 2. d4 {[%clk 0:02:58.2]}
2... Bb7 {[%clk 0:02:51.5]} 3. a3 {[%clk 0:02:58.6]} 3... e6 {[%clk 0:02:50.7]}
4. Nc3 {[%clk 0:02:58]} 4... f5 {[%clk 0:02:40.7]} 5. d5 {[%clk 0:02:56.8]} 5...
Nf6 {[%clk 0:02:41.4]} 6. g3 {[%clk 0:02:56.7]} 6... Bd6 {[%clk 0:02:38]} 7. Nf3
{[%clk 0:02:56.1]} 7... c6 {[%clk 0:02:30.6]} 8. dxe6 {[%clk 0:02:38.3]} 8...
dxe6 {[%clk 0:02:30.6]} 9. Bf4 {[%clk 0:02:38.9]} 9... Bxf4 {[%clk 0:02:28]} 10.
Qxd8+ {[%clk 0:02:36.6]} 10... Kxd8 {[%clk 0:02:28.6]} 11. gxf4 {[%clk
0:02:37.1]} 11... c5 {[%clk 0:02:29.3]} 12. Bg2 {[%clk 0:02:35.5]} 12... Nbd7
{[%clk 0:02:28.8]} 13. O-O-O {[%clk 0:02:34]} 13... Ke7 {[%clk 0:02:29.4]} 14.
Rhg1 {[%clk 0:02:29.5]} 14... g6 {[%clk 0:02:22.6]} 15. h3 {[%clk 0:02:10.2]}
15... Rhd8 {[%clk 0:02:20.1]} 16. Ne5 {[%clk 0:01:47.4]} 16... Bxg2 {[%clk
0:02:18.8]} 17. Rxg2 {[%clk 0:01:41.9]} 17... Nxe5 {[%clk 0:02:16.3]} 18. fxe5
{[%clk 0:01:41.6]} 18... Rxd1+ {[%clk 0:02:06.7]} 19. Kxd1 {[%clk 0:01:41.5]}
19... Rd8+ {[%clk 0:02:07.3]} 20. Kc2 {[%clk 0:01:37.7]} 20... Nh5 {[%clk
0:02:03.7]} 21. e3 {[%clk 0:01:35.6]} 21... f4 {[%clk 0:02:01.5]} 22. Ne4 {[%clk
0:01:32.5]} 22... fxe3 {[%clk 0:01:58.7]} 23. fxe3 {[%clk 0:01:32.5]} 23... Ng7
{[%clk 0:01:59.1]} 24. Nf6 {[%clk 0:01:16.5]} 24... Nf5 {[%clk 0:01:56.3]} 25.
Re2 {[%clk 0:01:16.2]} 25... h6 {[%clk 0:01:49.1]} 26. Kc3 {[%clk 0:01:13.5]}
26... Rd1 {[%clk 0:01:45.5]} 27. Rg2 {[%clk 0:00:59.7]} 27... g5 {[%clk
0:01:31.4]} 28. e4 {[%clk 0:00:59.3]} 28... Nd4 {[%clk 0:00:41]} 29. Ng8+ {[%clk
0:00:59.1]} 29... Kf7 {[%clk 0:00:41.5]} 30. Nxh6+ {[%clk 0:00:59.3]} 30... Kg6
{[%clk 0:00:42]} 31. Ng8 {[%clk 0:00:54.5]} 31... Rc1+ {[%clk 0:00:42.3]} 32.
Kd3 {[%clk 0:00:53.5]} 32... Rh1 {[%clk 0:00:43]} 33. Ne7+ {[%clk 0:00:51.4]}
33... Kh5 {[%clk 0:00:43.1]} 34. Rg3 {[%clk 0:00:35]} 34... Kh4 {[%clk
0:00:43.2]} 35. Rg4+ {[%clk 0:00:32.9]} 35... Kh5 {[%clk 0:00:41.1]} 36. Rg3
{[%clk 0:00:33]} 36... Rd1+ {[%clk 0:00:33.8]} 37. Ke3 {[%clk 0:00:27.7]} 37...
Re1+ {[%clk 0:00:31.9]} 38. Kd3 {[%clk 0:00:26.3]} 38... Rd1+ {[%clk 0:00:26.1]}
39. Ke3 {[%clk 0:00:26.6]} 39... Rb1 {[%clk 0:00:26.9]} 40. Rg2 {[%clk
0:00:24.7]} 40... Rh1 {[%clk 0:00:23.9]} 41. Rg3 {[%clk 0:00:23.9]} 41... Rh2
{[%clk 0:00:24.7]} 42. Ng8 {[%clk 0:00:20.6]} 42... Rxb2 {[%clk 0:00:16.5]} 43.
Nf6+ {[%clk 0:00:20.9]} 43... Kg6 {[%clk 0:00:17.2]} 44. Rg1 {[%clk 0:00:19.1]}
44... Rb3+ {[%clk 0:00:17.3]} 45. Kd2 {[%clk 0:00:19.5]} 45... Rxh3 {[%clk
0:00:18.1]} 46. Nd7 {[%clk 0:00:17.3]} 46... Nf3+ {[%clk 0:00:18.1]} 0-1

[Event "Late-Titled-Tuesday-Blitz-October-10-2023"]
[Site "Chess.com"]
[Date "2023.10.10"]
[Round "4"]
[White "Witty_Alien"]
[Black "Mikhal867"]
[Result "0-1"]
[WhiteElo "2226"]
[BlackElo "2466"]
[TimeControl "180+1"]
[EndTime "14:36:49 PDT"]
[Termination "Mikhal867 won on time"]

1. e4 {[%clk 0:03:00.9]} 1... g6 {[%clk 0:02:59.1]} 2. h4 {[%clk 0:02:58.9]}
2... d5 {[%clk 0:02:57.5]} 3. exd5 {[%clk 0:02:59]} 3... Qxd5 {[%clk 0:02:57]}
4. Nc3 {[%clk 0:02:59.7]} 4... Qa5 {[%clk 0:02:55.5]} 5. b4 {[%clk 0:02:59.4]}
5... Qxb4 {[%clk 0:02:48.5]} 6. Rb1 {[%clk 0:02:59.8]} 6... Qd6 {[%clk
0:02:43.8]} 7. h5 {[%clk 0:02:58.9]} 7... Bg7 {[%clk 0:02:37.5]} 8. Nf3 {[%clk
0:02:49.1]} 8... Nc6 {[%clk 0:02:35.5]} 9. Bc4 {[%clk 0:02:48.8]} 9... Be6
{[%clk 0:02:32]} 10. Qe2 {[%clk 0:02:21.5]} 10... O-O-O {[%clk 0:02:15.4]} 11.
Ba6 {[%clk 0:01:40.9]} 11... bxa6 {[%clk 0:02:04.8]} 12. Qxa6+ {[%clk
0:01:40.9]} 12... Kd7 {[%clk 0:02:05]} 13. h6 {[%clk 0:01:28]} 13... Bxc3 {[%clk
0:01:56.5]} 14. dxc3 {[%clk 0:01:28.3]} 14... Bd5 {[%clk 0:01:51.6]} 15. Ba3
{[%clk 0:01:19.2]} 15... Qe6+ {[%clk 0:01:49.2]} 16. Kd2 {[%clk 0:01:10.8]}
16... Bxf3 {[%clk 0:01:47.2]} 17. gxf3 {[%clk 0:01:06.6]} 17... Ke8+ {[%clk
0:01:39.5]} 18. Kc1 {[%clk 0:01:06.8]} 18... Nf6 {[%clk 0:01:30.3]} 19. Rd1
{[%clk 0:00:53.4]} 19... Rxd1+ {[%clk 0:01:20]} 20. Kxd1 {[%clk 0:00:53.8]}
20... Nd5 {[%clk 0:01:18.3]} 21. Rb7 {[%clk 0:00:29.9]} 21... Kd7 {[%clk
0:01:11.8]} 22. c4 {[%clk 0:00:20.1]} 22... Nb6 {[%clk 0:01:09.1]} 23. Qb5
{[%clk 0:00:13.3]} 23... Qxc4 {[%clk 0:00:53]} 24. Rxb6 {[%clk 0:00:12.3]} 24...
Qd4+ {[%clk 0:00:52.4]} 25. Kc1 {[%clk 0:00:09.6]} 25... axb6 {[%clk 0:00:46.6]}
26. Bb2 {[%clk 0:00:07.6]} 26... Qf4+ {[%clk 0:00:43.9]} 27. Kb1 {[%clk
0:00:08.1]} 27... Ra8 {[%clk 0:00:37.8]} 28. Qd5+ {[%clk 0:00:04.8]} 28... Qd6
{[%clk 0:00:37]} 29. Qxf7 {[%clk 0:00:05.4]} 29... Qe6 {[%clk 0:00:34.9]} 30.
Qxh7 {[%clk 0:00:04.3]} 30... Qxa2+ {[%clk 0:00:33.8]} 31. Kc1 {[%clk
0:00:04.7]} 31... Qc4 {[%clk 0:00:26]} 32. Qxg6 {[%clk 0:00:03.8]} 32... Nb4
{[%clk 0:00:24.5]} 33. Qg4+ {[%clk 0:00:02.6]} 33... Qxg4 {[%clk 0:00:19.1]} 34.
fxg4 {[%clk 0:00:03.5]} 34... e5 {[%clk 0:00:17.4]} 35. Bxe5 {[%clk 0:00:03.2]}
35... Ke6 {[%clk 0:00:17.7]} 36. Bb2 {[%clk 0:00:01]} 36... Nd5 {[%clk
0:00:16.6]} 37. h7 {[%clk 0:00:01.1]} 37... Nf6 {[%clk 0:00:16.7]} 0-1

[Event "Late-Titled-Tuesday-Blitz-October-10-2023"]
[Site "Chess.com"]
[Date "2023.10.10"]
[Round "4"]
[White "BogdanDeac"]
[Black "tjallkompall"]
[Result "1-0"]
[WhiteElo "3013"]
[BlackElo "2752"]
[TimeControl "180+1"]
[EndTime "14:36:51 PDT"]
[Termination "BogdanDeac won on time"]

1. b3 {[%clk 0:03:00.9]} 1... c5 {[%clk 0:02:57]} 2. Bb2 {[%clk 0:03:00.9]} 2...
Nc6 {[%clk 0:02:57.6]} 3. e3 {[%clk 0:03:01.4]} 3... Nf6 {[%clk 0:02:53.6]} 4.
c4 {[%clk 0:03:00.6]} 4... g6 {[%clk 0:02:52.3]} 5. Bxf6 {[%clk 0:03:00.3]} 5...
exf6 {[%clk 0:02:52.1]} 6. Nc3 {[%clk 0:03:01]} 6... Bg7 {[%clk 0:02:51.9]} 7.
g3 {[%clk 0:03:01.6]} 7... f5 {[%clk 0:02:51.5]} 8. Bg2 {[%clk 0:03:00.1]} 8...
O-O {[%clk 0:02:51.1]} 9. Nge2 {[%clk 0:02:59.9]} 9... d6 {[%clk 0:02:49.6]} 10.
O-O {[%clk 0:02:59.6]} 10... Re8 {[%clk 0:02:49.5]} 11. Rb1 {[%clk 0:02:53.1]}
11... a6 {[%clk 0:02:48.7]} 12. a3 {[%clk 0:02:52.5]} 12... Rb8 {[%clk
0:02:41.3]} 13. d4 {[%clk 0:02:37.3]} 13... cxd4 {[%clk 0:02:38.2]} 14. exd4
{[%clk 0:02:36.5]} 14... f4 {[%clk 0:02:25.8]} 15. d5 {[%clk 0:01:57.9]} 15...
Ne5 {[%clk 0:02:12.8]} 16. gxf4 {[%clk 0:01:53.5]} 16... Ng4 {[%clk 0:02:01.8]}
17. h3 {[%clk 0:01:52.6]} 17... Nf6 {[%clk 0:02:01.7]} 18. Ng3 {[%clk
0:01:52.2]} 18... h5 {[%clk 0:01:53.6]} 19. Qf3 {[%clk 0:01:15.8]} 19... h4
{[%clk 0:01:48.3]} 20. Nge4 {[%clk 0:01:15.9]} 20... Nxe4 {[%clk 0:01:18.7]} 21.
Nxe4 {[%clk 0:01:16.8]} 21... Bf5 {[%clk 0:01:18.9]} 22. Rbe1 {[%clk 0:01:12.3]}
22... Qb6 {[%clk 0:01:03.4]} 23. b4 {[%clk 0:00:55.5]} 23... Qd4 {[%clk
0:01:02]} 24. Nxd6 {[%clk 0:00:52.1]} 24... Rxe1 {[%clk 0:00:56.7]} 25. Rxe1
{[%clk 0:00:50.9]} 25... Bd7 {[%clk 0:00:51.1]} 26. Re7 {[%clk 0:00:36.6]} 26...
Ba4 {[%clk 0:00:50.6]} 27. c5 {[%clk 0:00:28.8]} 27... Bf8 {[%clk 0:00:43.9]}
28. Qe3 {[%clk 0:00:18.2]} 28... Qf6 {[%clk 0:00:24.6]} 29. Rxf7 {[%clk
0:00:13.5]} 29... Qa1+ {[%clk 0:00:17.5]} 30. Kh2 {[%clk 0:00:13.3]} 30... Bxd6
{[%clk 0:00:17.8]} 31. Qe6 {[%clk 0:00:13.4]} 31... Kh8 {[%clk 0:00:02.1]} 32.
Qxd6 {[%clk 0:00:09.9]} 32... Rg8 {[%clk 0:00:02.8]} 33. Qe7 {[%clk 0:00:06]}
1-0